[Event "The Elitserien 2024/25: round 1 - 3"]
[Site "Scandic Infra City, Kanalvagen 10, Upplands Vasby, Sweden"]
[Date "2024.10.06"]
[Round "3.7"]
[White "Brynell, Stellan"]
[Black "Nygren, Kim"]
[Result "1-0"]
[TimeControl "90 minutes for 40 moves + 30 minutes for the rest of the game + 30 seconds per move from move one."]
[WhiteTitle "GM"]
[BlackTitle "CM"]
[WhiteFideId "1700219"]
[BlackFideId "1706136"]
[WhiteElo "2368"]
[BlackElo "2155"]

1. d4 {[%clk 01:30:57]} {[%emt 00:00:02]} g6 {[%clk 01:27:11]} {[%emt
00:03:50]} 2. e4 {[%clk 01:30:35]} {[%emt 00:00:52]} Bg7 {[%clk 01:26:47]}
{[%emt 00:00:54]} 3. Nf3 {[%clk 01:30:57]} {[%emt 00:00:08]} d6 {[%clk
01:26:27]} {[%emt 00:00:51]} 4. Bc4 {[%clk 01:31:18]} {[%emt 00:00:09]} e6
{[%clk 01:24:39]} {[%emt 00:02:18]} 5. O-O {[%clk 01:30:01]} {[%emt 00:01:46]}
Ne7 {[%clk 01:24:46]} {[%emt 00:00:23]} 6. Bb3 {[%clk 01:29:38]} {[%emt
00:00:53]} b6 {[%clk 01:24:10]} {[%emt 00:01:07]} 7. c3 {[%clk 01:29:30]}
{[%emt 00:00:37]} Bb7 {[%clk 01:23:56]} {[%emt 00:00:45]} 8. Re1 {[%clk
01:29:47]} {[%emt 00:00:12]} Nd7 {[%clk 01:23:20]} {[%emt 00:01:06]} 9. Nbd2
{[%clk 01:30:06]} {[%emt 00:00:11]} O-O {[%clk 01:19:24]} {[%emt 00:04:27]} 10.
Nf1 {[%clk 01:30:05]} {[%emt 00:00:30]} e5 {[%clk 01:12:10]} {[%emt 00:07:44]}
11. Ng3 {[%clk 01:24:53]} {[%emt 00:05:42]} c5 {[%clk 01:08:25]} {[%emt
00:04:15]} 12. Bg5 {[%clk 01:18:47]} {[%emt 00:06:36]} exd4 {[%clk 00:48:29]}
{[%emt 00:20:27]} 13. cxd4 {[%clk 01:17:51]} {[%emt 00:01:25]} h6 {[%clk
00:45:30]} {[%emt 00:03:30]} 14. Bf4 {[%clk 01:06:00]} {[%emt 00:12:19]} cxd4
{[%clk 00:39:46]} {[%emt 00:06:15]} 15. Qd2 {[%clk 00:54:23]} {[%emt 00:12:07]}
Kh7 {[%clk 00:36:29]} {[%emt 00:03:47]} 16. Nxd4 {[%clk 00:53:53]} {[%emt
00:01:00]} Ne5 {[%clk 00:33:25]} {[%emt 00:03:35]} 17. Nb5 {[%clk 00:46:00]}
{[%emt 00:08:22]} Ba6 {[%clk 00:22:57]} {[%emt 00:10:58]} 18. a4 {[%clk
00:46:19]} {[%emt 00:00:10]} Bxb5 {[%clk 00:19:21]} {[%emt 00:04:07]} 19. axb5
{[%clk 00:46:42]} {[%emt 00:00:06]} Qd7 {[%clk 00:16:36]} {[%emt 00:03:16]} 20.
Qe2 {[%clk 00:44:04]} {[%emt 00:03:08]} Rac8 {[%clk 00:15:19]} {[%emt
00:01:48]} 21. Red1 {[%clk 00:40:36]} {[%emt 00:03:57]} Rc7 {[%clk 00:06:19]}
{[%emt 00:09:31]} 22. h3 {[%clk 00:34:57]} {[%emt 00:06:08]} f5 {[%clk
00:05:23]} {[%emt 00:01:26]} 23. exf5 {[%clk 00:29:31]} {[%emt 00:05:56]} gxf5
{[%clk 00:05:28]} {[%emt 00:00:25]} 24. Nh5 {[%clk 00:23:06]} {[%emt 00:06:55]}
N7g6 {[%clk 00:04:24]} {[%emt 00:01:35]} 25. Rd2 {[%clk 00:19:01]} {[%emt
00:04:34]} Qe7 {[%clk 00:03:08]} {[%emt 00:01:46]} 26. Rad1 {[%clk 00:18:04]}
{[%emt 00:01:27]} Rd7 {[%clk 00:01:19]} {[%emt 00:02:20]} 27. Bd5 {[%clk
00:10:37]} {[%emt 00:07:56]} Bf6 {[%clk 00:00:40]} {[%emt 00:01:08]} 28. Bg3
{[%clk 00:08:55]} {[%emt 00:02:13]} Bh4 {[%clk 00:00:37]} {[%emt 00:00:33]} 29.
Rd4 {[%clk 00:08:16]} {[%emt 00:01:09]} Bxg3 {[%clk 00:00:43]} {[%emt
00:00:24]} 30. fxg3 {[%clk 00:08:39]} {[%emt 00:00:07]} Rdd8 {[%clk 00:00:35]}
{[%emt 00:00:39]} 31. Qf2 {[%clk 00:08:28]} {[%emt 00:00:41]} Qc7 {[%clk
00:00:35]} {[%emt 00:00:29]} 32. Nf4 {[%clk 00:07:30]} {[%emt 00:01:28]} Nxf4
{[%clk 00:00:41]} {[%emt 00:00:24]} 33. gxf4 {[%clk 00:07:52]} {[%emt
00:00:08]} Ng6 {[%clk 00:00:46]} {[%emt 00:00:26]} 34. Bc6 {[%clk 00:07:38]}
{[%emt 00:00:43]} Rg8 {[%clk 00:00:39]} {[%emt 00:00:37]} 35. Qd2 {[%clk
00:03:37]} {[%emt 00:04:31]} Qe7 {[%clk 00:00:50]} {[%emt 00:00:20]} 36. Re1
{[%clk 00:03:20]} {[%emt 00:00:46]} Qf6 {[%clk 00:00:59]} {[%emt 00:00:21]} 37.
Ra4 {[%clk 00:02:48]} {[%emt 00:01:02]} Rg7 {[%clk 00:00:44]} {[%emt 00:00:44]}
38. Qd4 {[%clk 00:01:54]} {[%emt 00:01:24]} Qh4 {[%clk 00:00:47]} {[%emt
00:00:28]} 39. Rea1 {[%clk 00:01:31]} {[%emt 00:00:53]} Rdg8 {[%clk 00:00:47]}
{[%emt 00:00:30]} 40. Qf2 {[%clk 00:01:02]} {[%emt 00:00:58]} Qf6 {[%clk
00:00:35]} {[%emt 00:00:42]} 41. Rxa7 {[%clk 00:29:08]} {[%emt 00:02:25]} h5
{[%clk 00:19:03]} {[%emt 00:12:01]} 42. R7a4 {[%clk 00:20:18]} {[%emt
00:09:20]} Nh4 {[%clk 00:17:08]} {[%emt 00:02:25]} 43. Ra7 {[%clk 00:20:35]}
{[%emt 00:00:14]} Ng6 {[%clk 00:16:24]} {[%emt 00:01:13]} 44. Kh2 {[%clk
00:17:26]} {[%emt 00:03:39]} Kh6 {[%clk 00:10:39]} {[%emt 00:06:16]} 45. Qxb6
{[%clk 00:13:31]} {[%emt 00:04:26]} Qxb2 {[%clk 00:07:53]} {[%emt 00:03:15]} 46.
R7a2 {[%clk 00:13:01]} {[%emt 00:01:00]} Qb4 {[%clk 00:06:54]} {[%emt
00:01:28]} 47. Ra4 {[%clk 00:11:51]} {[%emt 00:01:41]} Qb3 {[%clk 00:05:23]}
{[%emt 00:01:59]} 48. R1a3 {[%clk 00:09:44]} {[%emt 00:02:39]} Qc2 {[%clk
00:05:10]} {[%emt 00:00:42]} 49. Ra2 {[%clk 00:09:15]} {[%emt 00:01:00]} Qc1
{[%clk 00:02:30]} {[%emt 00:03:09]} 50. Qd4 {[%clk 00:07:40]} {[%emt 00:02:05]}
Re7 {[%clk 00:01:11]} {[%emt 00:01:48]} 51. Ra1 {[%clk 00:07:38]} {[%emt
00:00:33]} Qc2 {[%clk 00:00:47]} {[%emt 00:00:55]} 52. R4a2 {[%clk 00:07:51]}
{[%emt 00:00:17]} Qc5 {[%clk 00:00:39]} {[%emt 00:00:37]} 53. Rd1 {[%clk
00:06:48]} {[%emt 00:01:33]} Rgg7 {[%clk 00:00:33]} {[%emt 00:00:37]} 54. Qxc5
{[%clk 00:05:32]} {[%emt 00:01:46]} dxc5 {[%clk 00:00:59]} {[%emt 00:00:04]} 55.
Rf2 {[%clk 00:05:29]} {[%emt 00:00:32]} Re3 {[%clk 00:00:37]} {[%emt 00:00:53]}
56. Rc1 {[%clk 00:04:15]} {[%emt 00:01:43]} h4 {[%clk 00:00:37]} {[%emt
00:00:31]} 57. Rxc5 {[%clk 00:04:37]} {[%emt 00:00:08]} Re1 {[%clk 00:00:46]}
{[%emt 00:00:21]} 58. b6 {[%clk 00:04:00]} {[%emt 00:01:07]} Rb1 {[%clk
00:00:54]} {[%emt 00:00:21]} 59. Rb5 {[%clk 00:03:47]} {[%emt 00:00:43]} Rxb5
{[%clk 00:00:33]} {[%emt 00:00:52]} 60. Bxb5 {[%clk 00:04:15]} {[%emt
00:00:02]} Rb7 {[%clk 00:00:45]} {[%emt 00:00:18]} 61. Bd3 {[%clk 00:04:35]}
{[%emt 00:00:10]} Ne7 {[%clk 00:00:36]} {[%emt 00:00:39]} 62. Rb2 {[%clk
00:04:17]} {[%emt 00:00:48]} Nc8 {[%clk 00:00:32]} {[%emt 00:00:34]} 63. Bxf5
{[%clk 00:04:00]} {[%emt 00:00:47]} Rxb6 {[%clk 00:00:49]} {[%emt 00:00:14]} 64.
Rxb6+ {[%clk 00:03:33]} {[%emt 00:00:57]} Nxb6 {[%clk 00:01:14]} {[%emt
00:00:05]} 65. Be6 {[%clk 00:03:55]} {[%emt 00:00:07]} Na4 {[%clk 00:01:28]}
{[%emt 00:00:16]} 66. Kg1 {[%clk 00:03:59]} {[%emt 00:00:25]} Nc3 {[%clk
00:01:51]} {[%emt 00:00:07]} 67. Kf2 {[%clk 00:04:09]} {[%emt 00:00:20]} Ne4+
{[%clk 00:02:00]} {[%emt 00:00:21]} 68. Ke3 {[%clk 00:04:04]} {[%emt 00:00:35]}
Nf6 {[%clk 00:02:22]} {[%emt 00:00:10]} 69. Kd4 {[%clk 00:04:21]} {[%emt
00:00:12]} Nh5 {[%clk 00:01:55]} {[%emt 00:00:56]} 70. Ke5 {[%clk 00:04:36]}
{[%emt 00:00:15]} Kg6 {[%clk 00:01:51]} {[%emt 00:00:35]} 71. Bd5 {[%clk
00:04:01]} {[%emt 00:01:05]} Kh6 {[%clk 00:01:18]} {[%emt 00:01:03]} 72. Kf5
{[%clk 00:03:18]} {[%emt 00:01:13]} Ng3+ {[%clk 00:01:24]} {[%emt 00:00:24]} 73.
Kg4 {[%clk 00:03:32]} {[%emt 00:00:15]} Nh5 {[%clk 00:01:08]} {[%emt 00:00:46]}
74. Bc6 {[%clk 00:03:09]} {[%emt 00:00:54]} Ng7 {[%clk 00:00:34]} {[%emt
00:01:04]} 75. Kxh4 {[%clk 00:03:18]} {[%emt 00:00:21]} 1-0

[Event "The Elitserien 2024/25: round 1 - 3"]
[Site "Scandic Infra City, Kanalvagen 10, Upplands Vasby, Sweden"]
[Date "2024.10.06"]
[Round "3.8"]
[White "Seiger, Vidar"]
[Black "Carlsson, Daniel"]
[Result "1-0"]
[TimeControl "90 minutes for 40 moves + 30 minutes for the rest of the game + 30 seconds per move from move one."]
[WhiteFideId "1756079"]
[BlackFideId "1703021"]
[WhiteElo "2010"]
[BlackElo "2289"]

1. Nf3 {[%clk 01:30:56]} {[%emt 00:00:02]} Nf6 {[%clk 01:24:58]} {[%emt
00:06:03]} 2. g3 {[%clk 01:31:18]} {[%emt 00:00:08]} g6 {[%clk 01:25:25]}
{[%emt 00:00:04]} 3. Bg2 {[%clk 01:31:40]} {[%emt 00:00:06]} Bg7 {[%clk
01:25:53]} {[%emt 00:00:03]} 4. O-O {[%clk 01:32:01]} {[%emt 00:00:09]} O-O
{[%clk 01:26:16]} {[%emt 00:00:07]} 5. d4 {[%clk 01:32:25]} {[%emt 00:00:06]}
d5 {[%clk 01:24:14]} {[%emt 00:02:33]} 6. c4 {[%clk 01:32:47]} {[%emt
00:00:06]} c6 {[%clk 01:24:07]} {[%emt 00:00:37]} 7. cxd5 {[%clk 01:33:09]}
{[%emt 00:00:09]} cxd5 {[%clk 01:22:01]} {[%emt 00:02:36]} 8. Nc3 {[%clk
01:33:30]} {[%emt 00:00:08]} e6 {[%clk 01:08:33]} {[%emt 00:13:59]} 9. Bf4
{[%clk 01:30:56]} {[%emt 00:03:03]} Nc6 {[%clk 01:05:43]} {[%emt 00:03:22]} 10.
Ne5 {[%clk 01:29:42]} {[%emt 00:01:43]} Nxe5 {[%clk 01:05:16]} {[%emt
00:00:57]} 11. Bxe5 {[%clk 01:29:56]} {[%emt 00:00:15]} Bd7 {[%clk 00:59:51]}
{[%emt 00:05:56]} 12. Qd2 {[%clk 01:18:56]} {[%emt 00:11:30]} Bc6 {[%clk
00:58:29]} {[%emt 00:01:52]} 13. f3 {[%clk 01:16:56]} {[%emt 00:02:30]} a5
{[%clk 00:56:41]} {[%emt 00:02:18]} 14. Rad1 {[%clk 01:16:32]} {[%emt
00:00:53]} b5 {[%clk 00:53:44]} {[%emt 00:03:28]} 15. Rfe1 {[%clk 01:12:53]}
{[%emt 00:04:08]} b4 {[%clk 00:51:42]} {[%emt 00:02:33]} 16. Nb1 {[%clk
01:13:10]} {[%emt 00:00:13]} Qb6 {[%clk 00:49:22]} {[%emt 00:02:50]} 17. Qg5
{[%clk 01:11:46]} {[%emt 00:01:54]} h6 {[%clk 00:47:07]} {[%emt 00:02:46]} 18.
Qf4 {[%clk 01:07:33]} {[%emt 00:04:42]} g5 {[%clk 00:46:06]} {[%emt 00:01:31]}
19. Qe3 {[%clk 01:06:25]} {[%emt 00:01:38]} Rac8 {[%clk 00:43:21]} {[%emt
00:03:15]} 20. h4 {[%clk 01:00:50]} {[%emt 00:06:04]} Nh7 {[%clk 00:42:32]}
{[%emt 00:01:19]} 21. Bxg7 {[%clk 00:57:53]} {[%emt 00:03:29]} Kxg7 {[%clk
00:42:55]} {[%emt 00:00:07]} 22. Qe5+ {[%clk 00:50:38]} {[%emt 00:07:43]} Kg8
{[%clk 00:43:20]} {[%emt 00:00:05]} 23. hxg5 {[%clk 00:51:00]} {[%emt
00:00:08]} hxg5 {[%clk 00:43:45]} {[%emt 00:00:06]} 24. Kf2 {[%clk 00:44:47]}
{[%emt 00:06:42]} Ba4 {[%clk 00:42:34]} {[%emt 00:01:42]} 25. Rc1 {[%clk
00:40:45]} {[%emt 00:04:32]} f6 {[%clk 00:42:43]} {[%emt 00:00:21]} 26. Qe3
{[%clk 00:41:06]} {[%emt 00:00:09]} Bc2 {[%clk 00:41:09]} {[%emt 00:02:04]} 27.
Rh1 {[%clk 00:37:10]} {[%emt 00:04:25]} Rf7 {[%clk 00:18:27]} {[%emt 00:23:13]}
28. Nd2 {[%clk 00:24:26]} {[%emt 00:13:13]} e5 {[%clk 00:11:17]} {[%emt
00:07:41]} 29. dxe5 {[%clk 00:20:40]} {[%emt 00:04:16]} d4 {[%clk 00:11:03]}
{[%emt 00:00:44]} 30. Qd3 {[%clk 00:19:16]} {[%emt 00:01:53]} Bxd3 {[%clk
00:10:55]} {[%emt 00:00:38]} 31. Rxc8+ {[%clk 00:19:43]} {[%emt 00:00:03]} Kg7
{[%clk 00:10:59]} {[%emt 00:00:26]} 32. exd3 {[%clk 00:19:46]} {[%emt
00:00:28]} Qe6 {[%clk 00:10:06]} {[%emt 00:01:23]} 33. Bh3 {[%clk 00:17:43]}
{[%emt 00:02:33]} f5 {[%clk 00:09:53]} {[%emt 00:00:44]} 34. Rc5 {[%clk
00:16:41]} {[%emt 00:01:31]} Qxa2 {[%clk 00:09:09]} {[%emt 00:01:14]} 35. Nc4
{[%clk 00:17:03]} {[%emt 00:00:08]} g4 {[%clk 00:08:16]} {[%emt 00:01:24]} 36.
e6 {[%clk 00:13:07]} {[%emt 00:04:26]} Re7 {[%clk 00:02:47]} {[%emt 00:05:59]}
37. fxg4 {[%clk 00:12:58]} {[%emt 00:00:38]} Qa4 {[%clk 00:02:46]} {[%emt
00:00:31]} 38. Re1 {[%clk 00:06:13]} {[%emt 00:07:16]} Ng5 {[%clk 00:02:41]}
{[%emt 00:00:34]} 39. Bg2 {[%clk 00:05:53]} {[%emt 00:00:51]} Rxe6 {[%clk
00:02:45]} {[%emt 00:00:26]} 40. Ne5 {[%clk 00:02:33]} {[%emt 00:03:49]} fxg4
{[%clk 00:00:39]} {[%emt 00:02:37]} 41. Rc7+ {[%clk 00:29:53]} {[%emt
00:03:09]} Kf8 {[%clk 00:28:41]} {[%emt 00:02:29]} 42. Rh1 {[%clk 00:05:05]}
{[%emt 00:25:18]} Nh3+ {[%clk 00:24:20]} {[%emt 00:04:51]} 43. Bxh3 {[%clk
00:05:22]} {[%emt 00:00:12]} Rxe5 {[%clk 00:14:32]} {[%emt 00:10:18]} 44. Bxg4
{[%clk 00:03:25]} {[%emt 00:02:28]} Re7 {[%clk 00:12:10]} {[%emt 00:02:52]} 45.
Rc8+ {[%clk 00:01:45]} {[%emt 00:02:10]} Kg7 {[%clk 00:12:12]} {[%emt
00:00:28]} 46. Bf5 {[%clk 00:01:41]} {[%emt 00:00:34]} Rf7 {[%clk 00:10:13]}
{[%emt 00:02:29]} 47. g4 {[%clk 00:02:09]} {[%emt 00:00:01]} Kf6 {[%clk
00:08:46]} {[%emt 00:01:58]} 48. Rc6+ {[%clk 00:01:38]} {[%emt 00:01:00]} Kg5
{[%clk 00:08:29]} {[%emt 00:00:48]} 49. Kg3 {[%clk 00:01:56]} {[%emt 00:00:12]}
Qxc6 {[%clk 00:07:43]} {[%emt 00:01:15]} 50. Rh5+ {[%clk 00:02:25]} {[%emt
00:00:02]} Kf6 {[%clk 00:08:03]} {[%emt 00:00:10]} 51. Rh6+ {[%clk 00:02:53]}
{[%emt 00:00:02]} Ke5 {[%clk 00:08:20]} {[%emt 00:00:12]} 52. Rxc6 {[%clk
00:03:16]} {[%emt 00:00:07]} Ra7 {[%clk 00:08:47]} {[%emt 00:00:03]} 53. Rc5+
{[%clk 00:03:15]} {[%emt 00:00:31]} Kd6 {[%clk 00:09:06]} {[%emt 00:00:12]} 54.
Rc4 {[%clk 00:03:40]} {[%emt 00:00:04]} Kd5 {[%clk 00:08:48]} {[%emt 00:00:49]}
55. Kf4 {[%clk 00:03:55]} {[%emt 00:00:14]} 1-0

[Event "The Elitserien 2024/25: round 1 - 3"]
[Site "Scandic Infra City, Kanalvagen 10, Upplands Vasby, Sweden"]
[Date "2024.10.06"]
[Round "3.9"]
[White "Grigorov, Grigor"]
[Black "Soderstrom, Adrian"]
[Result "1/2-1/2"]
[TimeControl "90 minutes for 40 moves + 30 minutes for the rest of the game + 30 seconds per move from move one."]
[WhiteTitle "GM"]
[BlackTitle "FM"]
[WhiteFideId "2907313"]
[BlackFideId "1745786"]
[WhiteElo "2514"]
[BlackElo "2318"]

1. d4 {[%clk 01:30:56]} {[%emt 00:00:03]} d5 {[%clk 01:30:47]} {[%emt
00:00:14]} 2. Nf3 {[%clk 01:31:16]} {[%emt 00:00:10]} Nf6 {[%clk 01:31:14]}
{[%emt 00:00:04]} 3. c4 {[%clk 01:31:37]} {[%emt 00:00:08]} e6 {[%clk
01:31:41]} {[%emt 00:00:03]} 4. g3 {[%clk 01:31:51]} {[%emt 00:00:15]} Be7
{[%clk 01:32:07]} {[%emt 00:00:05]} 5. Bg2 {[%clk 01:32:05]} {[%emt 00:00:15]}
O-O {[%clk 01:32:33]} {[%emt 00:00:05]} 6. Qd3 {[%clk 01:31:57]} {[%emt
00:00:37]} a6 {[%clk 01:25:12]} {[%emt 00:07:51]} 7. Bf4 {[%clk 01:28:13]}
{[%emt 00:04:14]} dxc4 {[%clk 01:15:37]} {[%emt 00:10:06]} 8. Qxc4 {[%clk
01:28:33]} {[%emt 00:00:09]} Nd5 {[%clk 01:15:38]} {[%emt 00:00:30]} 9. Bd2
{[%clk 01:24:24]} {[%emt 00:04:37]} b5 {[%clk 01:14:10]} {[%emt 00:02:00]} 10.
Qc2 {[%clk 01:23:45]} {[%emt 00:01:08]} Bb7 {[%clk 01:14:25]} {[%emt 00:00:16]}
11. O-O {[%clk 01:22:58]} {[%emt 00:01:16]} Nd7 {[%clk 01:09:26]} {[%emt
00:05:30]} 12. Ba5 {[%clk 01:14:26]} {[%emt 00:09:01]} Qb8 {[%clk 01:03:29]}
{[%emt 00:06:27]} 13. Nc3 {[%clk 00:51:42]} {[%emt 00:23:14]} Nxc3 {[%clk
00:54:41]} {[%emt 00:09:19]} 14. Bxc3 {[%clk 00:48:33]} {[%emt 00:03:39]} c5
{[%clk 00:52:11]} {[%emt 00:03:00]} 15. dxc5 {[%clk 00:48:52]} {[%emt
00:00:09]} Nxc5 {[%emt 00:00:54]} 16. Be5 {[%clk 00:42:28]} {[%emt 00:06:51]}
Qe8 {[%clk 00:50:03]} {[%emt 00:02:18]} 17. Ne1 {[%clk 00:36:34]} {[%emt
00:06:24]} 1/2-1/2

[Event "The Elitserien 2024/25: round 1 - 3"]
[Site "Scandic Infra City, Kanalvagen 10, Upplands Vasby, Sweden"]
[Date "2024.10.06"]
[Round "3.10"]
[White "Lindh, Fredrik"]
[Black "Hellers, Ferdinand"]
[Result "0-1"]
[TimeControl "90 minutes for 40 moves + 30 minutes for the rest of the game + 30 seconds per move from move one."]
[WhiteTitle "FM"]
[BlackTitle "GM"]
[WhiteFideId "1707884"]
[BlackFideId "1700022"]
[WhiteElo "2284"]
[BlackElo "2589"]

1. e4 {[%clk 01:30:57]} {[%emt 00:00:03]} Nf6 {[%clk 01:26:59]} {[%emt
00:04:02]} 2. e5 {[%clk 01:30:30]} {[%emt 00:00:57]} Nd5 {[%clk 01:27:22]}
{[%emt 00:00:07]} 3. d4 {[%clk 01:30:54]} {[%emt 00:00:05]} d6 {[%clk
01:27:42]} {[%emt 00:00:10]} 4. Nf3 {[%clk 01:31:13]} {[%emt 00:00:11]} g6
{[%clk 01:28:03]} {[%emt 00:00:09]} 5. Bc4 {[%clk 01:30:31]} {[%emt 00:01:14]}
Nb6 {[%clk 01:28:26]} {[%emt 00:00:06]} 6. Bb3 {[%clk 01:30:56]} {[%emt
00:00:05]} Bg7 {[%clk 01:28:48]} {[%emt 00:00:06]} 7. Ng5 {[%clk 01:31:17]}
{[%emt 00:00:10]} e6 {[%clk 01:29:00]} {[%emt 00:00:18]} 8. Qf3 {[%clk
01:31:43]} {[%emt 00:00:05]} O-O {[%clk 01:22:19]} {[%emt 00:07:10]} 9. Qh3
{[%clk 01:15:59]} {[%emt 00:16:14]} h6 {[%clk 01:21:54]} {[%emt 00:00:55]} 10.
Ne4 {[%clk 01:08:29]} {[%emt 00:07:59]} d5 {[%clk 01:22:13]} {[%emt 00:00:12]}
11. Nc5 {[%clk 01:01:30]} {[%emt 00:07:30]} Kh7 {[%clk 01:22:31]} {[%emt
00:00:11]} 12. Nd2 {[%clk 01:01:18]} {[%emt 00:00:42]} N6d7 {[%clk 01:21:15]}
{[%emt 00:01:45]} 13. Nf3 {[%clk 00:53:45]} {[%emt 00:08:04]} Nxc5 {[%clk
01:16:35]} {[%emt 00:05:10]} 14. Bg5 {[%clk 00:42:56]} {[%emt 00:11:20]} Qe8
{[%clk 01:15:21]} {[%emt 00:01:44]} 15. dxc5 {[%clk 00:42:55]} {[%emt
00:00:31]} Nd7 {[%clk 01:15:34]} {[%emt 00:00:15]} 16. Ba4 {[%clk 00:37:22]}
{[%emt 00:06:04]} c6 {[%clk 01:13:30]} {[%emt 00:02:34]} 17. Be3 {[%clk
00:36:09]} {[%emt 00:01:44]} f6 {[%clk 01:05:49]} {[%emt 00:08:11]} 18. exf6
{[%clk 00:15:19]} {[%emt 00:21:20]} Nxf6 {[%clk 01:06:05]} {[%emt 00:00:12]} 19.
Ne5 {[%clk 00:12:00]} {[%emt 00:03:51]} Nh5 {[%clk 01:05:43]} {[%emt 00:00:54]}
20. Nd3 {[%clk 00:07:34]} {[%emt 00:04:53]} e5 {[%clk 01:05:23]} {[%emt
00:00:50]} 21. Qh4 {[%clk 00:08:02]} {[%emt 00:00:03]} e4 {[%clk 01:05:08]}
{[%emt 00:00:44]} 22. Nf4 {[%clk 00:07:35]} {[%emt 00:00:57]} Bf6 {[%clk
01:05:14]} {[%emt 00:00:24]} 0-1

[Event "The Elitserien 2024/25: round 1 - 3"]
[Site "Scandic Infra City, Kanalvagen 10, Upplands Vasby, Sweden"]
[Date "2024.10.06"]
[Round "3.11"]
[White "Amin, Bassem"]
[Black "Walinder, Lars"]
[Result "1-0"]
[TimeControl "90 minutes for 40 moves + 30 minutes for the rest of the game + 30 seconds per move from move one."]
[WhiteTitle "GM"]
[BlackTitle "FM"]
[WhiteFideId "10601457"]
[BlackFideId "1707329"]
[WhiteElo "2636"]
[BlackElo "2223"]

1. e4 {[%clk 01:24:39]} {[%emt 00:06:19]} c5 {[%clk 01:30:46]} {[%emt
00:00:15]} 2. Nf3 {[%clk 01:24:36]} {[%emt 00:00:33]} d6 {[%clk 01:30:51]}
{[%emt 00:00:26]} 3. g3 {[%clk 01:21:16]} {[%emt 00:03:49]} Nf6 {[%clk
01:30:37]} {[%emt 00:00:45]} 4. d3 {[%clk 01:21:36]} {[%emt 00:00:11]} g6
{[%clk 01:30:17]} {[%emt 00:00:49]} 5. Bg2 {[%clk 01:21:59]} {[%emt 00:00:07]}
Bg7 {[%clk 01:30:18]} {[%emt 00:00:28]} 6. O-O {[%clk 01:22:22]} {[%emt
00:00:08]} O-O {[%clk 01:30:13]} {[%emt 00:00:35]} 7. c3 {[%clk 01:21:40]}
{[%emt 00:01:12]} Nc6 {[%clk 01:30:17]} {[%emt 00:00:26]} 8. Re1 {[%clk
01:21:53]} {[%emt 00:00:17]} e5 {[%clk 01:30:19]} {[%emt 00:00:28]} 9. a3
{[%clk 01:22:18]} {[%emt 00:00:05]} b5 {[%clk 01:25:34]} {[%emt 00:05:15]} 10.
h3 {[%clk 01:21:58]} {[%emt 00:00:49]} a5 {[%clk 01:14:05]} {[%emt 00:11:59]}
11. a4 {[%clk 01:19:52]} {[%emt 00:02:37]} b4 {[%clk 01:13:32]} {[%emt
00:01:03]} 12. Nbd2 {[%clk 01:16:16]} {[%emt 00:04:06]} Rb8 {[%clk 01:03:22]}
{[%emt 00:10:39]} 13. Nc4 {[%clk 01:16:27]} {[%emt 00:00:19]} h6 {[%clk
00:57:03]} {[%emt 00:06:49]} 14. d4 {[%clk 01:11:36]} {[%emt 00:05:23]} Ba6
{[%clk 00:45:57]} {[%emt 00:11:36]} 15. dxe5 {[%clk 01:04:34]} {[%emt
00:07:31]} Bxc4 {[%clk 00:43:34]} {[%emt 00:02:52]} 16. exf6 {[%clk 01:04:58]}
{[%emt 00:00:06]} Qxf6 {[%clk 00:43:36]} {[%emt 00:00:28]} 17. Bd2 {[%clk
01:05:16]} {[%emt 00:00:12]} Rfe8 {[%clk 00:39:34]} {[%emt 00:04:32]} 18. Qc1
{[%clk 01:01:59]} {[%emt 00:03:48]} Bd3 {[%clk 00:28:48]} {[%emt 00:11:16]} 19.
Nh2 {[%clk 00:52:55]} {[%emt 00:09:34]} bxc3 {[%clk 00:16:53]} {[%emt
00:12:26]} 20. bxc3 {[%clk 00:52:23]} {[%emt 00:01:01]} h5 {[%clk 00:16:57]}
{[%emt 00:00:26]} 21. Nf1 {[%clk 00:46:30]} {[%emt 00:06:23]} Rb3 {[%clk
00:08:06]} {[%emt 00:09:21]} 22. Ne3 {[%clk 00:39:38]} {[%emt 00:07:22]} Bxe4
{[%clk 00:02:59]} {[%emt 00:05:38]} 23. Nf1 {[%clk 00:39:03]} {[%emt 00:01:04]}
d5 {[%clk 00:01:59]} {[%emt 00:01:30]} 24. f3 {[%clk 00:38:06]} {[%emt
00:01:27]} Ne5 {[%clk 00:02:09]} {[%emt 00:00:20]} 25. Qd1 {[%clk 00:34:19]}
{[%emt 00:04:17]} Bxf3 {[%clk 00:01:05]} {[%emt 00:01:34]} 26. Qxb3 {[%clk
00:34:08]} {[%emt 00:00:41]} Bxg2 {[%clk 00:01:27]} {[%emt 00:00:08]} 27. Kxg2
{[%clk 00:34:31]} {[%emt 00:00:07]} Qf3+ {[%clk 00:01:42]} {[%emt 00:00:15]} 28.
Kg1 {[%clk 00:34:57]} {[%emt 00:00:04]} Qd3 {[%clk 00:01:18]} {[%emt 00:00:54]}
29. Qb5 {[%clk 00:31:47]} {[%emt 00:03:40]} Nf3+ {[%clk 00:01:36]} {[%emt
00:00:12]} 30. Kf2 {[%clk 00:32:16]} Qxb5 {[%clk 00:01:43]} {[%emt 00:00:23]}
31. axb5 {[%clk 00:32:42]} {[%emt 00:00:04]} Nxe1 {[%clk 00:01:55]} {[%emt
00:00:18]} 32. Bxe1 {[%clk 00:32:59]} {[%emt 00:00:12]} d4 {[%clk 00:01:49]}
{[%emt 00:00:36]} 33. Ra3 {[%clk 00:33:05]} {[%emt 00:00:23]} d3 {[%clk
00:00:55]} {[%emt 00:01:26]} 34. Ne3 {[%clk 00:32:52]} {[%emt 00:00:43]} 1-0